bitfinex/quotes_SOLUSD_20220113
["timestamp","ask_amount","ask_price","bid_price","bid_amount"]
[1642084430215,64.61,157.08,156.96,0.25]
[1642084430416,64.61,157.06,156.96,0.25]
[1642084430616,64.86,157.06,156.9,6.0]
[1642084430819,9.5547,157.04,156.93,4.778]
[1642084431016,2.548,157.03,156.93,4.778]
[1642084431216,7.38167041,157.02,156.93,4.778]
[1642084431616,13.38167041,157.02,156.93,4.778]
[1642084432218,9.5565,157.01,156.92,4.7785]
[1642084432417,12.1045,157.01,156.92,4.7785]
[1642084432720,18.1045,157.01,156.92,4.7785]
[1642084433122,12.1045,157.01,156.92,4.7785]
[1642084433318,48.8405,157.06,156.93,2.548]
[1642084433518,72.0709,157.07,156.99,4.7764]
[1642084433720,10.208,157.1,156.99,4.7764]
[1642084433919,7.66,157.1,156.99,5.0264]
[1642084434121,82.76101959,157.09,156.99,5.0264]
[1642084434321,9.5524,157.08,156.95,15.9213]
[1642084434523,67.157,157.07,156.97,4.7767]
[1642084434722,67.157,157.07,156.91,2.547]
[1642084434952,7.66,157.06,156.86,2.547]
[1642084435122,2.548,157.05,156.86,2.547]
[1642084435327,9.5575,156.99,156.86,15.9295]
[1642084435521,18.15101959,156.99,156.91,4.7788]
[1642084436924,27.70851959,156.99,156.9,4.7791]
[1642084437126,27.95851959,156.99,156.9,4.7791]
[1642084437524,27.70851959,156.99,156.9,5.0291]
[1642084438426,27.95851959,156.99,156.89,4.7795]
[1642084438627,2.549,156.98,156.89,4.7795]
[1642084438825,2.549,156.98,156.85,18.4794]
[1642084438826,9.5595,156.96,156.85,18.4794]
[1642084439027,74.4195,156.96,156.85,2.548]
[1642084439226,7.14761671,156.94,156.85,2.548]
[1642084439828,9.562,156.92,156.85,2.548]
[1642084440030,2.549,156.91,156.85,2.548]
[1642084440229,7.66,156.9,156.78,3.60933754]
[1642084440433,2.549,156.89,156.78,3.60933754]
[1642084440828,18.15101959,156.88,156.78,3.60933754]
[1642084441028,18.15101959,156.88,156.78,8.39173754]
[1642084441241,0.25,156.88,156.78,8.39173754]
[1642084441428,6.0,156.89,156.78,8.64173754]
[1642084441631,6.0,156.9,156.79,2.549]
[1642084441928,62.4193,156.93,156.79,2.549]
[1642084442130,62.4193,156.93,156.79,0.25]
[1642084442331,18.7089036,156.92,156.79,0.25]
[1642084442556,9.5624,156.91,156.79,2.799]
[1642084442859,6.5897327,156.89,156.78,3.60933754]
[1642084443255,6.5897327,156.89,156.78,4.86307291]
[1642084443956,6.5897327,156.89,156.79,17.90456462]
[1642084444156,9.6428,156.91,156.79,20.45356462]
[1642084444357,9.8928,156.91,156.79,20.70356462]
[1642084445158,9.8928,156.91,156.79,2.799]
[1642084445361,2.549,156.9,156.78,3.60933754]
[1642084445565,9.565,156.87,156.78,3.60933754]
[1642084445760,2.549,156.86,156.78,3.60933754]
[1642084445959,8.799,156.86,156.78,3.60933754]
[1642084446161,20.76140839,156.85,156.78,3.60933754]
[1642084446359,2.549,156.84,156.78,3.60933754]
[1642084446558,8.799,156.84,156.78,3.60933754]
[1642084446758,2.799,156.84,156.78,3.60933754]
[1642084446959,8.799,156.84,156.78,3.60933754]
[1642084447168,2.549,156.84,156.78,3.60933754]
[1642084447362,34.4374,156.89,156.78,3.85933754]
[1642084447561,40.4374,156.89,156.78,3.60933754]
[1642084447763,2.549,156.89,156.79,1.25373537]
[1642084447964,0.04,156.91,156.79,10.05273537]
[1642084448271,0.04,156.91,156.8,23.94184116]
[1642084448463,78.2456,156.92,156.81,2.549]
[1642084448665,87.8079,156.92,156.83,4.7809]
[1642084449064,0.04,156.85,156.83,5.0309]
[1642084449364,0.08,156.85,156.83,4.7809]
[1642084449566,0.08,156.85,156.81,2.549]
[1642084449766,0.08,156.85,156.81,0.25]
[1642084450869,0.08,156.85,156.8,4.782]
[1642084451075,0.08,156.85,156.8,5.032]
[1642084451668,0.08,156.85,156.8,4.782]
[1642084451870,0.08,156.85,156.8,5.032]
[1642084452670,0.08,156.85,156.78,4.7824]
[1642084452872,0.08,156.85,156.79,0.06]
[1642084453074,0.08,156.85,156.79,2.609]
[1642084453270,0.08,156.85,156.8,1.25373537]
[1642084453475,0.08,156.85,156.81,2.549]
[1642084453871,0.08,156.85,156.81,25.14367594]
[1642084454072,0.08,156.85,156.81,29.92517594]
[1642084454873,0.08,156.85,156.81,36.18517594]
[1642084455274,0.08,156.85,156.81,100.79517594]
[1642084455675,204.3463,156.96,156.83,64.61]
[1642084455676,2.549,156.96,156.83,64.61]
[1642084455876,2.549,156.99,156.91,4.7787]
[1642084456078,94.74304142,157.01,156.91,5.0287]
[1642084456079,9.5575,157.0,156.91,5.0287]
[1642084456277,74.4352,157.01,156.91,6.28243537]
[1642084456676,74.4352,157.01,156.91,5.0287]
[1642084456877,74.4352,157.01,156.91,6.28243537]
[1642084457077,74.4352,157.01,156.91,25.84648931]
[1642084457477,74.4352,157.01,156.91,27.10022468]
[1642084458278,83.9926,157.01,156.91,27.10022468]
[1642084458685,83.9926,157.01,156.91,0.25]
[1642084458880,2.548,157.0,156.91,0.25]
[1642084459080,2.798,157.0,156.89,12.6891]
[1642084459281,2.798,157.0,156.89,12.4391]
[1642084459680,12.1062,157.0,156.9,22.73808956]
[1642084459982,2.548,157.02,156.91,4.7785]
[1642084460280,2.548,157.03,156.91,6.03223537]
[1642084460480,2.548,157.07,156.92,7.66]
[1642084460680,3.16882973,157.15,156.92,7.66]
[1642084460681,9.551,157.12,156.98,15.9175]
[1642084460880,49.4289,157.14,156.99,12.4353]
[1642084461080,2.545,157.12,156.99,12.6853]
[1642084461284,2.545,157.13,156.99,26.67403537]
[1642084461480,22.73033258,157.13,157.0,24.55830467]
[1642084461882,22.73033258,157.13,157.03,4.7748]
[1642084462081,22.73033258,157.13,157.03,5.0248]
[1642084462488,22.98033258,157.13,157.03,5.0248]
[1642084463184,22.73033258,157.13,157.03,4.7748]
[1642084463387,22.73033258,157.13,156.98,1.25373537]
[1642084463584,22.73033258,157.13,156.91,9.55318259]
[1642084463585,28.73033258,157.13,156.95,7.66]
[1642084463788,36.39033258,157.13,156.95,7.66]
[1642084463985,36.39033258,157.13,156.92,2.545]
[1642084464185,96.94,157.11,156.92,2.545]
[1642084464388,39.26960372,157.1,156.92,2.545]
[1642084464587,45.51960372,157.1,156.92,2.545]
[1642084464885,19.40704274,157.03,156.92,2.545]
[1642084465088,67.158,157.02,156.92,2.545]
[1642084465486,67.408,157.02,156.92,2.545]
[1642084465688,75.068,157.02,156.92,2.545]
[1642084466090,75.068,157.02,156.88,4.7794]
[1642084466292,90.6266,157.02,156.88,4.7794]
[1642084467288,90.6266,157.02,156.87,4.78]
[1642084468288,26.0166,157.02,156.87,29.75015915]
[1642084468489,2.548,157.02,156.87,37.25070165]
[1642084468724,76.1441,157.02,156.93,4.778]
[1642084468926,2.548,157.08,156.93,12.438]
[1642084469220,2.548,157.08,156.94,1.2505425]
[1642084469621,17.73060247,157.07,156.94,1.2505425]
[1642084469828,2.547,157.06,156.93,4.778]
[1642084470028,2.547,157.06,156.93,24.14975684]
[1642084470029,8.547,157.06,156.93,24.14975684]
[1642084470220,2.547,157.06,156.94,1.2505425]
[1642084470427,96.58270247,157.07,156.94,1.2505425]
[1642084470620,96.58270247,157.07,156.94,1.5005425]
[1642084471221,96.58270247,157.07,156.94,6.2784425]
[1642084471423,96.58270247,157.07,156.94,4.13846543]
[1642084471623,96.58270247,157.07,156.94,11.38900793]
[1642084471822,96.58270247,157.07,156.94,5.38900793]
[1642084472023,96.58270247,157.07,156.95,2.547]
[1642084472223,96.58270247,157.07,156.94,2.547]
[1642084472422,2.547,157.06,156.93,15.9234]
[1642084472622,96.58270247,157.07,156.93,15.9234]
[1642084473124,102.58270247,157.07,156.96,26.3955241]
[1642084473524,84.8521,157.07,156.96,32.6455241]
[1642084473826,84.8521,157.07,156.97,1.2505425]
[1642084473827,78.8521,157.07,156.97,1.2505425]
[1642084474025,78.8521,157.07,156.97,1.5005425]
[1642084474432,78.8521,157.07,157.02,4.7752]
[1642084474626,23.4459,157.09,157.02,4.7752]
[1642084474826,24.1577,157.1,157.02,4.7752]
[1642084475427,23.52453336,157.11,157.02,4.7752]
[1642084476027,23.77453336,157.11,157.02,4.7752]
[1642084476627,23.52453336,157.11,157.02,4.7752]
[1642084476831,23.52453336,157.11,156.98,3.7955425]
[1642084477034,67.157,157.1,156.98,1.2505425]
[1642084477231,2.547,157.1,156.94,7.66]
[1642084477433,8.547,157.1,156.95,2.547]
[1642084477631,8.547,157.1,156.95,1.2505425]
[1642084478031,8.547,157.1,156.94,36.46583759]
[1642084478032,2.797,157.1,156.96,1.2505425]
[1642084478232,12.3493,157.1,156.98,4.7766]
[1642084478631,2.797,157.1,156.98,4.7766]
[1642084479032,2.797,157.1,156.98,5.0266]
[1642084479434,0.25,157.1,156.98,5.0266]
[1642084479732,23.52453336,157.11,156.98,5.0266]
[1642084479932,23.52453336,157.11,156.98,11.0266]
[1642084480335,23.52453336,157.11,156.99,19.04216144]
[1642084480533,23.52453336,157.11,157.04,4.7749]
[1642084480733,2.547,157.13,157.04,4.7749]
[1642084481736,150.01892035,157.14,157.04,5.0249]
[1642084481938,2.8919593,157.16,157.04,5.0249]
[1642084482135,2.8919593,157.16,157.04,6.2754425]
[1642084482335,2.8919593,157.16,157.1,4.7726]
[1642084482937,2.8919593,157.16,157.1,5.0226]
[1642084483339,2.8919593,157.16,157.1,11.2826]
[1642084483541,2.8919593,157.16,157.13,4.7709]
[1642084483937,2.8919593,157.16,157.13,11.0209]
[1642084485140,24.3807,157.25,157.13,11.0209]
[1642084485340,74.3534,157.27,157.14,8.9105425]
[1642084485537,74.3534,157.27,157.2,4.7692]
[1642084485738,3.16882973,157.29,157.2,4.7692]
[1642084485939,3.16882973,157.28,157.2,11.0192]
[1642084486139,22.55391597,157.27,157.2,5.0192]
[1642084486339,22.55391597,157.27,157.2,11.0192]
[1642084486940,22.80391597,157.27,157.2,4.7692]
[1642084487145,22.80391597,157.27,157.11,10.205]
[1642084487341,4.19399521,157.26,157.09,2.544]
[1642084487541,4.44399521,157.26,157.07,7.66]
[1642084487742,121.3664,157.25,157.08,2.545]
[1642084487942,5.28972033,157.24,157.08,2.545]
[1642084488344,5.53972033,157.24,157.08,27.25263423]
[1642084488543,5.53972033,157.24,157.08,27.50263423]
[1642084488750,5.53972033,157.24,157.08,21.25263423]
[1642084489147,15.08302033,157.24,157.14,4.7715]
[1642084489344,5.53972033,157.24,157.14,4.7715]
[1642084490145,11.53972033,157.24,157.14,4.7715]
[1642084490548,11.53972033,157.24,157.14,5.0215]
[1642084490746,21.08252033,157.24,157.14,4.7715]
[1642084490947,21.08252033,157.24,157.12,4.7721]
[1642084491349,21.08252033,157.24,157.12,10.7721]
[1642084491550,64.61,157.23,157.12,10.7721]
[1642084491748,2.544,157.22,157.12,4.7721]
[1642084491948,22.28250892,157.21,157.12,4.7721]
[1642084492352,22.53250892,157.21,157.12,4.7721]
[1642084492751,22.28250892,157.21,157.12,5.0221]
[1642084493549,2.545,157.24,157.12,5.0221]
[1642084493761,73.9304,157.25,157.13,2.544]
[1642084493952,73.9304,157.25,157.16,4.771]
[1642084494553,19.04014101,157.24,157.16,4.771]
[1642084494751,28.58304101,157.24,157.13,0.25]
[1642084494985,28.83304101,157.24,157.13,0.25]
[1642084495153,19.04014101,157.24,157.15,4.7714]
[1642084495352,73.9304,157.25,157.15,4.7714]
[1642084495554,73.9304,157.25,157.15,5.0214]
[1642084497354,95.09047295,157.25,157.15,5.0214]
[1642084497558,95.09047295,157.25,157.15,11.0214]
[1642084497756,95.09047295,157.25,157.15,13.5654]
[1642084497956,73.9304,157.25,157.15,78.4354]
[1642084498156,73.9304,157.25,157.2,4.7692]
[1642084498356,27.3883492,157.3,157.2,4.7692]
[1642084498557,27.3883492,157.3,157.2,5.0192]
[1642084498958,22.34632882,157.29,157.2,5.0192]
[1642084499160,22.34632882,157.29,157.2,4.7692]
[1642084499359,28.34632882,157.29,157.18,4.7704]
[1642084499559,30.88932882,157.29,157.18,4.7704]
[1642084499760,24.88932882,157.29,157.18,5.0204]
[1642084500164,34.42942882,157.29,157.18,4.7704]
[1642084500362,97.0,157.27,157.07,7.66]
[1642084500561,10.205,157.26,157.03,3.6049599]
[1642084500760,0.30376996,157.25,157.03,3.6049599]
[1642084501060,10.205,157.24,157.05,4.7744]
[1642084501260,2.95230748,157.23,157.05,4.7744]
[1642084501461,10.205,157.22,157.05,4.7744]
[1642084501661,69.2282,157.22,157.05,4.7744]
[1642084501864,75.4782,157.22,157.05,4.7744]
[1642084503090,64.61,157.21,157.05,5.0244]
[1642084503291,9.548,157.14,157.05,5.0244]
[1642084503690,80.48464351,157.17,157.05,5.0244]
[1642084503892,75.0691,157.17,157.06,2.545]
[1642084504090,75.0691,157.17,157.05,4.7744]
[1642084504289,74.8191,157.17,157.05,4.7744]
[1642084504889,74.8191,157.17,157.05,10.7744]
[1642084505492,75.0691,157.17,157.05,10.7744]
[1642084505791,75.0691,157.17,157.05,4.7744]
[1642084506090,74.8191,157.17,157.05,4.7744]
[1642084506290,74.8191,157.17,157.06,2.545]
[1642084506492,75.0691,157.17,157.09,4.773]
[1642084506690,75.0691,157.17,157.1,21.38531985]
[1642084507293,0.25,157.17,157.06,21.9099]
[1642084507491,101.3437,157.2,157.06,22.1599]
[1642084507692,165.9537,157.2,157.06,22.1599]
[1642084508293,165.9537,157.2,157.1,4.7729]
[1642084508294,9.5457,157.18,157.1,4.7729]
[1642084508494,12.43376497,157.18,157.08,20.26446769]
[1642084508695,12.43376497,157.18,157.08,20.51446769]
[1642084509094,9.7957,157.18,157.08,20.51446769]
[1642084510299,9.5457,157.18,157.09,4.7733]
[1642084510507,109.88416203,157.2,157.09,5.0233]
[1642084511405,108.0935,157.2,157.09,5.0233]
[1642084511600,111.44999697,157.2,157.09,5.0233]
[1642084511806,1.0275492,157.1,157.07,4.7736]
[1642084512704,1.0275492,157.1,157.07,25.73973088]
[1642084513905,1.0275492,157.1,157.07,5.0236]
[1642084514509,6.06439994,157.09,157.07,5.0236]
[1642084514706,3.03219997,157.09,157.07,5.0236]
[1642084514905,1.0275492,157.1,157.07,5.0236]
[1642084515806,6.06439994,157.09,157.05,4.7743]
[1642084516105,6.06439994,157.09,157.03,2.545]
[1642084516306,6.06439994,157.09,157.01,1.80864369]
[1642084516506,6.06439994,157.09,157.02,23.78023402]
[1642084516706,6.06439994,157.09,157.02,25.58887771]
[1642084517108,6.06439994,157.09,157.03,4.7751]
[1642084517306,3.03219997,157.09,157.03,4.7751]
[1642084517507,1.0275492,157.1,157.03,4.7751]
[1642084518311,1.0275492,157.1,157.01,4.7755]
[1642084518510,1.2775492,157.1,157.01,4.7755]
[1642084518907,1.2775492,157.1,157.01,27.26488356]
[1642084519108,10.8283492,157.1,157.01,27.26488356]
[1642084519511,1.0275492,157.1,157.01,27.51488356]
[1642084520311,1.0275492,157.1,157.01,33.51488356]
[1642084520912,1.0275492,157.1,157.01,7.3205]
[1642084521110,10.8282492,157.1,156.99,1.80864369]
[1642084521312,2.545,157.09,156.99,1.80864369]
[1642084521512,8.795,157.09,156.99,1.80864369]
[1642084521713,2.545,157.09,156.99,1.80864369]
[1642084522013,2.545,157.09,156.96,1.80864369]
[1642084522211,1.0275492,157.1,157.03,0.31192075]
[1642084522412,7.30024459,157.2,157.05,97.0]
[1642084522710,4.75324459,157.2,157.09,15.9057]
[1642084522911,4.75324459,157.2,157.1,2.545]
[1642084523110,4.75324459,157.2,157.1,0.25]
[1642084523413,12.71362973,157.21,157.1,5.0218]
[1642084523610,5.39029689,157.2,157.1,0.25]
[1642084523810,5.39029689,157.2,157.06,28.53562318]
[1642084524110,5.39029689,157.2,157.07,0.25]
[1642084524111,64.61,157.19,157.07,0.25]
[1642084524311,64.61,157.19,157.03,1.24700943]
[1642084524312,12.0915,157.18,157.03,1.24700943]
[1642084524511,147.1344,157.18,157.03,6.25]
[1642084524711,147.1344,157.18,157.03,0.25]
[1642084525310,64.61,157.17,157.03,0.25]
[1642084525513,9.5495,157.14,157.04,4.775]
[1642084525811,32.00283941,157.14,157.04,4.775]
[1642084526014,38.25283941,157.14,157.04,4.775]
[1642084526211,2.545,157.13,157.04,4.775]
[1642084526512,73.405,157.13,156.99,2.545]
[1642084526711,73.405,157.13,156.96,6.1499599]
[1642084526912,119.7831,157.12,156.96,6.1499599]
[1642084527111,9.5521,157.09,156.99,4.7762]
[1642084527312,67.45529689,157.08,156.98,2.545]
[1642084527513,5.64229689,157.08,156.95,26.2760031]
[1642084527713,2.797,157.08,156.95,26.2760031]
[1642084527913,0.25,157.08,156.96,2.547]
[1642084528215,15.5526,157.08,156.97,4.7769]
[1642084528415,9.5526,157.08,156.97,4.7769]
[1642084528617,9.5526,157.08,156.97,5.0269]
[1642084529014,15.5526,157.08,156.96,2.547]
[1642084529215,2.547,157.07,156.93,2.547]
[1642084529414,2.547,157.07,156.94,4.7777]
[1642084529614,6.0,157.07,156.95,2.547]
[1642084529816,2.547,157.09,156.95,2.547]
[1642084530023,6.0,157.09,156.96,20.41741953]
[1642084530215,23.1245,157.1,156.97,2.547]
[1642084530416,32.6759,157.1,156.98,4.7766]
[1642084530617,32.6759,157.1,156.99,2.547]
[1642084530916,32.6759,157.1,156.98,10.04400943]
[1642084531117,23.1245,157.1,156.99,1.24700943]
[1642084531315,72.2062,157.12,157.0,2.547]
[1642084531517,72.2062,157.12,157.0,2.797]
[1642084531718,72.2062,157.12,157.0,4.04400943]
[1642084531915,72.2062,157.12,157.01,4.7756]
[1642084532115,72.2062,157.12,157.02,2.545]
[1642084532315,72.2062,157.12,157.02,3.79200943]
[1642084532514,72.2062,157.12,157.03,1.24700943]
[1642084532918,72.2062,157.12,157.03,18.02163757]
[1642084533219,72.2062,157.12,157.05,4.7746]
[1642084533620,2.545,157.16,157.05,5.0246]
[1642084533816,5.71382973,157.2,157.06,2.545]
[1642084534016,3.16882973,157.2,157.1,4.7729]
[1642084534416,3.16882973,157.2,157.1,27.24627423]
[1642084534916,12.0903,157.21,157.1,27.24627423]
[1642084535316,2.9004821,157.16,157.1,27.24627423]
[1642084535518,2.9004821,157.16,157.1,33.24627423]
[1642084535717,2.9004821,157.16,157.13,4.7706]
[1642084536121,2.9004821,157.16,157.13,11.0206]
[1642084536419,3.16882973,157.25,157.14,94.205]
[1642084536917,3.16882973,157.25,157.14,100.455]
[1642084537120,77.44882973,157.28,157.14,100.455]
[1642084537319,77.44882973,157.28,157.19,4.7697]
[1642084537523,77.44882973,157.28,157.19,5.0197]
[1642084537921,77.44882973,157.28,157.19,4.7697]
[1642084538123,95.03864373,157.28,157.16,18.10504957]
[1642084538324,2.544,157.27,157.16,18.10504957]
[1642084538521,12.0851,157.27,157.17,4.7708]
[1642084538726,18.0851,157.27,157.1,1.24700751]
[1642084538924,22.8795,157.26,157.09,7.66]
[1642084539123,2.544,157.25,157.09,13.66]
[1642084539324,2.544,157.25,157.1,2.544]
[1642084539524,2.794,157.25,157.11,17.36120021]
[1642084539729,2.544,157.25,157.12,4.7723]
[1642084539923,2.544,157.27,157.13,7.66]
[1642084540123,74.28,157.28,157.13,7.66]
[1642084540324,2.544,157.27,157.13,15.15700751]
[1642084540524,3.16882973,157.29,157.13,15.41700751]
[1642084540925,3.16882973,157.29,157.2,4.7697]
[1642084541124,6.0,157.29,157.2,4.7697]
[1642084541326,2.544,157.3,157.2,4.7697]
[1642084541327,2.544,157.3,157.2,5.0197]
[1642084541526,6.0,157.3,157.2,5.0197]
[1642084541926,6.0,157.3,157.2,11.0197]
[1642084542127,8.543,157.32,157.21,22.05300505]
[1642084542329,78.4268,157.33,157.21,30.59600505]
[1642084542527,25.4889,157.34,157.26,4.7675]
[1642084542728,3.16882973,157.35,157.26,4.7675]
[1642084543027,97.0,157.34,157.26,2.541]
[1642084543226,97.0,157.34,157.25,7.66]
[1642084543853,97.0,157.34,157.26,4.7675]
[1642084544353,2.541,157.33,157.2,7.66]
[1642084544556,2.541,157.33,157.17,10.201]
[1642084544752,10.19099521,157.33,157.17,13.66]
[1642084544953,10.44099521,157.33,157.17,13.66]
[1642084545155,27.52751074,157.32,157.19,4.7701]
[1642084545352,2.543,157.31,157.16,19.50267323]
[1642084545555,13.40661325,157.29,157.16,19.50267323]
[1642084545753,2.544,157.28,157.16,19.50267323]
[1642084545953,15.95061325,157.29,157.16,19.50267323]
[1642084546358,2.544,157.29,157.16,7.83217323]
[1642084546554,2.544,157.3,157.17,2.544]
[1642084546756,102.6447,157.31,157.17,2.544]
[1642084546957,108.6447,157.31,157.17,2.544]
[1642084547155,2.543,157.32,157.17,10.204]
[1642084547356,1.64999521,157.36,157.25,15.8903]
[1642084547357,2.543,157.36,157.25,15.8903]
[1642084547556,20.79329763,157.37,157.26,22.5274694]
[1642084547756,2.541,157.36,157.26,22.5274694]
[1642084548358,2.541,157.36,157.26,22.7774694]
[1642084548556,80.40222973,157.39,157.27,4.7671]
[1642084548759,74.6924,157.39,157.27,7.3081]
[1642084548961,74.6924,157.39,157.27,13.8181]
[1642084549157,74.6924,157.39,157.27,13.5581]
[1642084549360,74.6924,157.39,157.27,15.2181]
[1642084549559,74.6924,157.39,157.27,21.2181]
[1642084550461,1.2672424,157.42,157.27,87.33610968]
[1642084550860,1.2672424,157.42,157.27,22.72610968]
[1642084551060,23.19035871,157.42,157.27,22.46610968]
[1642084551262,23.19035871,157.42,157.27,21.2181]
[1642084551660,23.19035871,157.42,157.27,22.46610968]
[1642084551859,0.81278584,157.44,157.27,22.46610968]
[1642084552458,0.81278584,157.44,157.27,22.72610968]
[1642084552959,23.92864775,157.43,157.27,22.72610968]
[1642084553358,29.92864775,157.43,157.27,22.72610968]
[1642084553963,29.92864775,157.43,157.27,22.46610968]
[1642084554160,23.92864775,157.43,157.27,22.46610968]
[1642084554762,23.92864775,157.43,157.27,22.21610968]
[1642084555161,33.45974775,157.43,157.27,20.9681]
[1642084555361,2.541,157.42,157.27,20.9681]
[1642084555761,2.541,157.42,157.27,32.1003326]
[1642084555961,2.541,157.42,157.27,96.7103326]
[1642084556162,2.541,157.42,157.27,32.1003326]
[1642084556361,2.541,157.42,157.27,31.36232292]
[1642084556566,23.92864775,157.43,157.27,31.36232292]
[1642084557062,23.92864775,157.43,157.28,64.61]
[1642084557263,23.92864775,157.43,157.3,19.94274111]
[1642084557464,23.92864775,157.43,157.36,4.7636]
[1642084557863,0.81278584,157.44,157.36,5.0136]
[1642084558662,17.63452152,157.43,157.36,5.0136]
[1642084560164,20.17552152,157.43,157.36,5.0136]
[1642084561165,84.78552152,157.43,157.36,4.7636]
[1642084561367,84.78552152,157.43,157.33,26.98740564]
[1642084561368,85.03552152,157.43,157.34,4.7654]
[1642084561568,85.03552152,157.43,157.3,13.66]
[1642084561569,85.03552152,157.43,157.3,21.8854]
[1642084561965,91.03552152,157.43,157.3,21.8854]
[1642084562171,100.56652152,157.43,157.3,6.0]
[1642084562369,108.22652152,157.43,157.26,7.66]
[1642084562573,48.3199,157.42,157.22,7.66]
[1642084562770,10.201,157.41,157.22,7.66]
[1642084562970,72.0238,157.4,157.22,7.66]
[1642084563171,32.7469,157.39,157.22,7.66]
[1642084563371,27.50373094,157.37,157.23,19.83095149]
[1642084563575,2.541,157.36,157.24,4.7684]
[1642084563973,2.541,157.36,157.24,5.0184]
[1642084564372,2.541,157.36,157.24,4.7684]
[1642084564773,22.5459,157.39,157.3,4.7667]
[1642084564975,2.541,157.38,157.24,16.201]
[1642084565274,2.541,157.38,157.24,7.66]
[1642084565675,22.09173781,157.37,157.24,7.66]
[1642084565874,22.09173781,157.37,157.28,4.7673]
[1642084566073,2.541,157.36,157.23,19.83095149]
[1642084566478,67.401,157.36,157.23,19.83095149]
[1642084567076,73.401,157.36,157.22,7.66]
[1642084567377,73.401,157.36,157.23,4.7688]
[1642084567577,47.6538,157.35,157.23,4.7688]
[1642084567782,2.543,157.34,157.23,4.7688]
[1642084567984,76.9413,157.34,157.23,4.7688]
[1642084568186,23.21394029,157.33,157.19,34.99615874]
[1642084568384,2.543,157.32,157.19,15.8967]
[1642084568584,2.793,157.32,157.19,15.8967]
[1642084568790,8.793,157.32,157.21,4.7694]
[1642084568985,64.61,157.31,157.18,2.543]
[1642084569188,2.543,157.3,157.13,17.54422292]
[1642084569385,25.5204424,157.29,157.14,17.00258073]
[1642084569588,2.544,157.28,157.14,17.00258073]
[1642084570011,8.794,157.28,157.14,17.00258073]
[1642084570211,18.3361,157.28,157.15,4.7713]
[1642084570614,18.3361,157.28,157.15,5.0213]
[1642084571013,18.3361,157.28,157.15,4.7713]
[1642084571218,64.61,157.27,157.15,4.7713]
[1642084571416,2.544,157.28,157.15,4.7713]
[1642084571614,33.6234,157.29,157.15,4.7713]
[1642084571815,37.0794,157.29,157.15,4.7713]
[1642084572014,37.3294,157.29,157.15,4.7713]
[1642084572513,23.44062737,157.28,157.15,5.0213]
[1642084572714,25.98462737,157.28,157.15,5.0213]
[1642084572914,26.23462737,157.28,157.15,5.0213]
[1642084573113,64.61,157.27,157.15,5.0213]
[1642084573315,2.544,157.26,157.13,4.7718]
[1642084573513,8.794,157.26,157.13,4.7718]
[1642084574215,17.19863105,157.25,157.13,25.81318316]
[1642084574420,2.544,157.24,157.13,25.81318316]
[1642084574615,25.99263105,157.25,157.13,4.7718]
[1642084574816,0.25,157.24,157.13,4.7718]
[1642084575015,2.544,157.23,157.13,4.7718]
[1642084575216,0.25,157.24,157.13,4.7718]
[1642084575615,0.25,157.24,157.13,25.57814801]
[1642084576021,84.60263105,157.25,157.13,25.82814801]
[1642084576321,19.74263105,157.25,157.13,25.82814801]
[1642084577419,19.74263105,157.25,157.13,5.0218]
[1642084577623,26.74213105,157.25,157.13,4.7718]
[1642084577821,26.74213105,157.25,157.11,7.3165]
[1642084577822,40.40213105,157.25,157.11,7.3165]
[1642084578122,2.544,157.24,157.08,2.544]
[1642084578326,64.61,157.23,157.07,2.545]